[Event "*** SCC Grand Prix: Titled Tuesday Blitz"]
[Site "Chess.com"]
[Date "2020.06.23"]
[Round "3"]
[White "Poghosyan_Suren"]
[Black "Aygehovit1992"]
[Result "1-0"]
[WhiteElo "2442"]
[BlackElo "2674"]
[TimeControl "180+1"]
[EndTime "10:28:21 PDT"]
[Termination "Poghosyan_Suren won on time"]

1. d4 {[%clk 0:03:00.9]} 1... Nf6 {[%clk 0:02:59.7]} 2. c4 {[%clk 0:02:59.9]}
2... c5 {[%clk 0:02:59.4]} 3. e3 {[%clk 0:02:58.8]} 3... g6 {[%clk 0:02:56.9]}
4. Nc3 {[%clk 0:02:58.3]} 4... Bg7 {[%clk 0:02:56.7]} 5. Nf3 {[%clk 0:02:58.4]}
5... O-O {[%clk 0:02:56.6]} 6. Be2 {[%clk 0:02:58.6]} 6... cxd4 {[%clk
0:02:54.6]} 7. Nxd4 {[%clk 0:02:58.6]} 7... d5 {[%clk 0:02:55.2]} 8. O-O {[%clk
0:02:58]} 8... Nc6 {[%clk 0:02:53.7]} 9. Nxc6 {[%clk 0:02:56.1]} 9... bxc6
{[%clk 0:02:52.7]} 10. Bf3 {[%clk 0:02:52.6]} 10... e6 {[%clk 0:02:51.8]} 11.
Re1 {[%clk 0:02:50.7]} 11... a5 {[%clk 0:02:49.2]} 12. Rb1 {[%clk 0:02:45.4]}
12... Ba6 {[%clk 0:02:47.8]} 13. cxd5 {[%clk 0:02:45.1]} 13... cxd5 {[%clk
0:02:46.4]} 14. b3 {[%clk 0:02:45.3]} 14... Qe7 {[%clk 0:01:42.5]} 15. Bb2
{[%clk 0:02:39.7]} 15... Rfc8 {[%clk 0:01:38.9]} 16. Qd4 {[%clk 0:02:31.9]}
16... Qb4 {[%clk 0:01:19.6]} 17. Na4 {[%clk 0:02:26.5]} 17... Rab8 {[%clk
0:01:13.9]} 18. Qa7 {[%clk 0:02:16.8]} 18... Bd3 {[%clk 0:01:07.6]} 19. Rbc1
{[%clk 0:02:16.1]} 19... Ne4 {[%clk 0:01:02.3]} 20. Bxg7 {[%clk 0:01:59.7]}
20... Kxg7 {[%clk 0:01:00.9]} 21. Bxe4 {[%clk 0:01:37.2]} 21... dxe4 {[%clk
0:00:59.1]} 22. Nc5 {[%clk 0:01:28.9]} 22... Rc6 {[%clk 0:00:08.2]} 23. h4
{[%clk 0:01:05.1]} 23... Rbc8 {[%clk 0:00:06.5]} 24. a3 {[%clk 0:00:49.5]} 24...
Qxc5 {[%clk 0:00:01.4]} 25. Rxc5 {[%clk 0:00:48.4]} 25... Rxc5 {[%clk
0:00:02.3]} 26. b4 {[%clk 0:00:40.6]} 26... axb4 {[%clk 0:00:03.2]} 27. axb4
{[%clk 0:00:41.5]} 27... Rb5 {[%clk 0:00:02.6]} 28. Qd4+ {[%clk 0:00:39.7]}
28... e5 {[%clk 0:00:02.6]} 29. Qd6 {[%clk 0:00:38.8]} 29... Rc4 {[%clk
0:00:01.6]} 30. Ra1 {[%clk 0:00:34.4]} 1-0

[Event "*** SCC Grand Prix: Titled Tuesday Blitz"]
[Site "Chess.com"]
[Date "2020.06.23"]
[Round "3"]
[White "LiverpooL174"]
[Black "chigorin28"]
[Result "1-0"]
[WhiteElo "2674"]
[BlackElo "2418"]
[TimeControl "180+1"]
[EndTime "10:28:21 PDT"]
[Termination "LiverpooL174 won on time"]

1. e4 {[%clk 0:03:00.9]} 1... c5 {[%clk 0:02:59.6]} 2. Nf3 {[%clk 0:03:01.3]}
2... d6 {[%clk 0:03:00.1]} 3. d4 {[%clk 0:03:01.3]} 3... cxd4 {[%clk 0:03:01]}
4. Qxd4 {[%clk 0:03:02.2]} 4... Nc6 {[%clk 0:03:00.6]} 5. Bb5 {[%clk 0:03:02.6]}
5... Bd7 {[%clk 0:03:00.6]} 6. Bxc6 {[%clk 0:03:03.3]} 6... Bxc6 {[%clk
0:03:00.3]} 7. Nc3 {[%clk 0:03:03.3]} 7... Nf6 {[%clk 0:02:57.4]} 8. Bg5 {[%clk
0:03:03]} 8... e6 {[%clk 0:02:57.1]} 9. O-O-O {[%clk 0:03:03.3]} 9... Be7 {[%clk
0:02:57.6]} 10. Qd3 {[%clk 0:03:03.2]} 10... O-O {[%clk 0:02:46.2]} 11. Nd4
{[%clk 0:03:03.2]} 11... a6 {[%clk 0:02:40.7]} 12. h4 {[%clk 0:03:03]} 12... Qc7
{[%clk 0:02:40.5]} 13. Kb1 {[%clk 0:03:02.8]} 13... Rfd8 {[%clk 0:02:37.4]} 14.
f4 {[%clk 0:03:03.3]} 14... h6 {[%clk 0:02:35]} 15. g4 {[%clk 0:03:03]} 15... d5
{[%clk 0:02:27.3]} 16. Nxc6 {[%clk 0:03:01.3]} 16... bxc6 {[%clk 0:02:22.8]} 17.
Bxf6 {[%clk 0:03:01.6]} 17... Bxf6 {[%clk 0:02:18.1]} 18. e5 {[%clk 0:03:01.9]}
18... Be7 {[%clk 0:02:17.8]} 19. g5 {[%clk 0:03:01.8]} 19... Rab8 {[%clk
0:01:44.2]} 20. gxh6 {[%clk 0:02:55.2]} 20... gxh6 {[%clk 0:01:21.6]} 21. Rdg1+
{[%clk 0:02:54.5]} 21... Kh8 {[%clk 0:01:21.8]} 22. f5 {[%clk 0:02:48.4]} 22...
Qxe5 {[%clk 0:01:18.2]} 23. fxe6 {[%clk 0:02:48.4]} 23... Bf6 {[%clk 0:01:12.1]}
24. Rh3 {[%clk 0:02:41.1]} 24... Rg8 {[%clk 0:00:58.1]} 25. Rf1 {[%clk
0:02:34.1]} 25... fxe6 {[%clk 0:00:46.1]} 26. Rhf3 {[%clk 0:02:33.9]} 26... Bg7
{[%clk 0:00:38.6]} 27. Kc1 {[%clk 0:02:33.7]} 27... c5 {[%clk 0:00:32.7]} 28.
Re3 {[%clk 0:02:30.1]} 28... Qd4 {[%clk 0:00:28.3]} 29. Rxe6 {[%clk 0:02:28.3]}
29... Qxd3 {[%clk 0:00:27]} 30. cxd3 {[%clk 0:02:29.2]} 30... c4 {[%clk
0:00:16.8]} 31. dxc4 {[%clk 0:02:27.9]} 31... dxc4 {[%clk 0:00:17.2]} 32. Rf7
{[%clk 0:02:26.1]} 32... Rge8 {[%clk 0:00:14.2]} 33. Rxa6 {[%clk 0:02:21.6]}
33... Re1+ {[%clk 0:00:10.4]} 34. Kd2 {[%clk 0:02:21]} 34... Rbe8 {[%clk
0:00:10.3]} 35. Rg6 {[%clk 0:02:14.2]} 35... Bd4 {[%clk 0:00:07.2]} 36. Rd7
{[%clk 0:02:01.6]} 36... Bxc3+ {[%clk 0:00:05.2]} 37. Kxc3 {[%clk 0:02:02.5]}
37... R1e3+ {[%clk 0:00:04.5]} 38. Kxc4 {[%clk 0:01:56.2]} 38... R3e4+ {[%clk
0:00:04.6]} 39. Kd5 {[%clk 0:01:55.2]} 39... Rxh4 {[%clk 0:00:04]} 40. Rdd6
{[%clk 0:01:42.5]} 40... Kh7 {[%clk 0:00:03.7]} 41. a3 {[%clk 0:01:41.1]} 41...
Rh1 {[%clk 0:00:03.7]} 42. b4 {[%clk 0:01:39.7]} 42... Rd1+ {[%clk 0:00:03.8]}
43. Kc4 {[%clk 0:01:39.4]} 43... Rc8+ {[%clk 0:00:04]} 44. Kb3 {[%clk
0:01:38.3]} 44... Rxd6 {[%clk 0:00:04.2]} 45. Rxd6 {[%clk 0:01:38.1]} 45... h5
{[%clk 0:00:04.8]} 46. b5 {[%clk 0:01:37.8]} 46... Rc5 {[%clk 0:00:03.2]} 47.
Kb4 {[%clk 0:01:37.7]} 47... Rg5 {[%clk 0:00:02.8]} 48. b6 {[%clk 0:01:38.2]}
48... h4 {[%clk 0:00:03.3]} 49. b7 {[%clk 0:01:35.7]} 49... Rg8 {[%clk
0:00:03.5]} 50. Kb5 {[%clk 0:01:35.7]} 50... Rg1 {[%clk 0:00:01.6]} 51. Rb6
{[%clk 0:01:33]} 51... h3 {[%clk 0:00:01.6]} 52. b8=Q {[%clk 0:01:33]} 1-0

[Event "*** SCC Grand Prix: Titled Tuesday Blitz"]
[Site "Chess.com"]
[Date "2020.06.23"]
[Round "3"]
[White "ShimanovAlex"]
[Black "cassoulet"]
[Result "1-0"]
[WhiteElo "2873"]
[BlackElo "2649"]
[TimeControl "180+1"]
[EndTime "10:28:22 PDT"]
[Termination "ShimanovAlex won by resignation"]

1. d4 {[%clk 0:03:00.7]} 1... d5 {[%clk 0:02:58.9]} 2. Nf3 {[%clk 0:03:00.4]}
2... Nf6 {[%clk 0:02:59.3]} 3. Bf4 {[%clk 0:03:00.1]} 3... g6 {[%clk 0:02:59.6]}
4. e3 {[%clk 0:02:59.7]} 4... Bg7 {[%clk 0:03:00.1]} 5. Nbd2 {[%clk 0:02:58.5]}
5... O-O {[%clk 0:03:00.6]} 6. c3 {[%clk 0:02:58.5]} 6... c5 {[%clk 0:03:00.9]}
7. Bd3 {[%clk 0:02:58.1]} 7... Nc6 {[%clk 0:03:01.3]} 8. Ne5 {[%clk 0:02:56.4]}
8... Nxe5 {[%clk 0:02:54.6]} 9. Bxe5 {[%clk 0:02:56.4]} 9... b6 {[%clk 0:02:53]}
10. a4 {[%clk 0:02:45.5]} 10... Bg4 {[%clk 0:02:45.7]} 11. Qb1 {[%clk
0:02:44.1]} 11... Be6 {[%clk 0:02:35.8]} 12. b4 {[%clk 0:02:41.6]} 12... cxd4
{[%clk 0:02:28.9]} 13. cxd4 {[%clk 0:02:40.9]} 13... a6 {[%clk 0:02:28.6]} 14.
O-O {[%clk 0:02:40.4]} 14... Qd7 {[%clk 0:02:28.3]} 15. a5 {[%clk 0:02:38.9]}
15... Qb7 {[%clk 0:02:20.6]} 16. Rc1 {[%clk 0:02:33.8]} 16... Rfc8 {[%clk
0:02:08]} 17. Rxc8+ {[%clk 0:02:28.1]} 17... Bxc8 {[%clk 0:02:07.9]} 18. h3
{[%clk 0:02:24.6]} 18... Bd7 {[%clk 0:02:02.7]} 19. Nb3 {[%clk 0:02:13.8]} 19...
Ne8 {[%clk 0:01:55.3]} 20. Bg3 {[%clk 0:02:08.8]} 20... e6 {[%clk 0:01:44]} 21.
Qf1 {[%clk 0:01:52.7]} 21... Bf8 {[%clk 0:01:33]} 22. axb6 {[%clk 0:01:52.4]}
22... Qxb6 {[%clk 0:01:33.9]} 23. Nc5 {[%clk 0:01:52.5]} 23... Bc8 {[%clk
0:01:26]} 24. b5 {[%clk 0:01:51.7]} 24... Bxc5 {[%clk 0:01:14.8]} 25. dxc5
{[%clk 0:01:51.9]} 25... Qxc5 {[%clk 0:01:15.7]} 26. bxa6 {[%clk 0:01:52.3]}
26... Nd6 {[%clk 0:01:15.9]} 27. a7 {[%clk 0:01:34.2]} 27... Nc4 {[%clk
0:01:07.2]} 28. Bb8 {[%clk 0:01:32.2]} 28... Bb7 {[%clk 0:01:02]} 29. Qc1 {[%clk
0:01:27.2]} 29... Kg7 {[%clk 0:00:46.1]} 30. Qc3+ {[%clk 0:01:26.7]} 30... f6
{[%clk 0:00:45.5]} 31. h4 {[%clk 0:01:06.8]} 31... Qc6 {[%clk 0:00:42.4]} 32.
Bf1 {[%clk 0:01:04]} 32... h5 {[%clk 0:00:28]} 33. Qb4 {[%clk 0:01:02.4]} 33...
Kf7 {[%clk 0:00:25.2]} 34. e4 {[%clk 0:00:58.2]} 34... Ne5 {[%clk 0:00:21]} 35.
Rb1 {[%clk 0:00:46.2]} 35... Bc8 {[%clk 0:00:18.5]} 36. exd5 {[%clk 0:00:44.5]}
36... Qxd5 {[%clk 0:00:19.4]} 37. Rc1 {[%clk 0:00:41.6]} 37... Bb7 {[%clk
0:00:19.4]} 38. Rc7+ {[%clk 0:00:41.1]} 38... Kg8 {[%clk 0:00:19.6]} 39. Qxb7
{[%clk 0:00:41]} 39... Qxb7 {[%clk 0:00:18.2]} 1-0

[Event "*** SCC Grand Prix: Titled Tuesday Blitz"]
[Site "Chess.com"]
[Date "2020.06.23"]
[Round "3"]
[White "LogoCzar"]
[Black "abykhovsky"]
[Result "1-0"]
[WhiteElo "2449"]
[BlackElo "2702"]
[TimeControl "180+1"]
[EndTime "10:28:22 PDT"]
[Termination "LogoCzar won by checkmate"]

1. d4 {[%clk 0:03:00.9]} 1... Nf6 {[%clk 0:02:59.4]} 2. e3 {[%clk 0:03:00.6]}
2... g6 {[%clk 0:02:59.3]} 3. Nf3 {[%clk 0:03:00.4]} 3... Bg7 {[%clk 0:02:59.9]}
4. Be2 {[%clk 0:03:00.3]} 4... O-O {[%clk 0:03:00.5]} 5. O-O {[%clk 0:03:00.6]}
5... d5 {[%clk 0:03:00.6]} 6. b4 {[%clk 0:03:00.2]} 6... c6 {[%clk 0:02:59.5]}
7. Nbd2 {[%clk 0:02:55]} 7... Bf5 {[%clk 0:02:58.4]} 8. Bb2 {[%clk 0:02:53.7]}
8... Nbd7 {[%clk 0:02:58.6]} 9. c4 {[%clk 0:02:53.4]} 9... Ne4 {[%clk
0:02:56.4]} 10. c5 {[%clk 0:02:51.2]} 10... a5 {[%clk 0:02:55.3]} 11. b5 {[%clk
0:02:46.3]} 11... Ndxc5 {[%clk 0:02:44.7]} 12. bxc6 {[%clk 0:02:40.3]} 12...
bxc6 {[%clk 0:02:45.6]} 13. Qc1 {[%clk 0:02:37.3]} 13... Na4 {[%clk 0:02:44.3]}
14. Ba3 {[%clk 0:02:35.3]} 14... c5 {[%clk 0:02:39.3]} 15. Nxe4 {[%clk
0:02:24.7]} 15... dxe4 {[%clk 0:02:37.4]} 16. Ne5 {[%clk 0:02:11.5]} 16... cxd4
{[%clk 0:02:36.8]} 17. Nc6 {[%clk 0:02:11.1]} 17... Qd7 {[%clk 0:02:28.8]} 18.
Bb5 {[%clk 0:01:51.7]} 18... Kh8 {[%clk 0:01:08.9]} 19. Nxd4 {[%clk 0:01:45.4]}
19... Qd5 {[%clk 0:00:58.9]} 20. Bc6 {[%clk 0:01:33.1]} 20... Qe5 {[%clk
0:00:52.6]} 21. Bxa4 {[%clk 0:01:32.3]} 21... Rac8 {[%clk 0:00:52.8]} 22. Qd2
{[%clk 0:01:28.2]} 22... Qf6 {[%clk 0:00:49]} 23. Rac1 {[%clk 0:01:25.5]} 23...
Rcd8 {[%clk 0:00:49.2]} 24. Qxa5 {[%clk 0:01:18.2]} 24... Ra8 {[%clk 0:00:47.9]}
25. Qb4 {[%clk 0:01:13.3]} 25... Rfb8 {[%clk 0:00:47]} 26. Bb5 {[%clk
0:01:03.6]} 26... e5 {[%clk 0:00:46.4]} 27. Nxf5 {[%clk 0:00:59.5]} 27... gxf5
{[%clk 0:00:42.8]} 28. Bb2 {[%clk 0:00:57.6]} 28... Rxa2 {[%clk 0:00:40.4]} 29.
Ra1 {[%clk 0:00:49.6]} 29... Rxa1 {[%clk 0:00:39.5]} 30. Rxa1 {[%clk 0:00:48.7]}
30... h5 {[%clk 0:00:33]} 31. Qc5 {[%clk 0:00:43.7]} 31... h4 {[%clk 0:00:30]}
32. Ra6 {[%clk 0:00:36.5]} 32... Qd8 {[%clk 0:00:16.3]} 33. Bxe5 {[%clk
0:00:33.6]} 33... Qd1+ {[%clk 0:00:05.9]} 34. Bf1 {[%clk 0:00:33]} 34... Rb1
{[%clk 0:00:05.4]} 35. Qf8+ {[%clk 0:00:32.3]} 35... Kh7 {[%clk 0:00:05.1]} 36.
Qxg7# {[%clk 0:00:32.5]} 1-0

[Event "*** SCC Grand Prix: Titled Tuesday Blitz"]
[Site "Chess.com"]
[Date "2020.06.23"]
[Round "3"]
[White "yamalchess"]
[Black "SergeyKarjakin"]
[Result "0-1"]
[WhiteElo "2466"]
[BlackElo "2944"]
[TimeControl "180+1"]
[EndTime "10:28:23 PDT"]
[Termination "SergeyKarjakin won by resignation"]

1. d4 {[%clk 0:03:00.9]} 1... Nf6 {[%clk 0:02:57]} 2. c4 {[%clk 0:03:00.9]} 2...
e6 {[%clk 0:02:53.5]} 3. Nc3 {[%clk 0:03:00.9]} 3... Bb4 {[%clk 0:02:52.8]} 4.
Nf3 {[%clk 0:03:01.1]} 4... b6 {[%clk 0:02:50.4]} 5. Bg5 {[%clk 0:02:59.6]} 5...
h6 {[%clk 0:02:48.7]} 6. Bh4 {[%clk 0:02:59.5]} 6... g5 {[%clk 0:02:47]} 7. Bg3
{[%clk 0:02:59]} 7... Ne4 {[%clk 0:02:47.4]} 8. Qc2 {[%clk 0:02:58.6]} 8... Bb7
{[%clk 0:02:46.9]} 9. Nd2 {[%clk 0:02:57]} 9... Bxc3 {[%clk 0:02:43.3]} 10. bxc3
{[%clk 0:02:56.2]} 10... Nxg3 {[%clk 0:02:43.8]} 11. hxg3 {[%clk 0:02:55.5]}
11... d6 {[%clk 0:02:44.3]} 12. g4 {[%clk 0:02:53.3]} 12... Nd7 {[%clk
0:02:43.6]} 13. e3 {[%clk 0:02:49]} 13... Qe7 {[%clk 0:02:39.3]} 14. a4 {[%clk
0:02:45.2]} 14... a5 {[%clk 0:02:34]} 15. f3 {[%clk 0:02:35.2]} 15... f5 {[%clk
0:02:25]} 16. gxf5 {[%clk 0:02:22.8]} 16... exf5 {[%clk 0:02:25.9]} 17. Kf2
{[%clk 0:02:04.3]} 17... Qe6 {[%clk 0:02:11.7]} 18. Bd3 {[%clk 0:02:00]} 18...
O-O {[%clk 0:02:11.3]} 19. Rh3 {[%clk 0:01:36]} 19... Rae8 {[%clk 0:02:09.2]}
20. Re1 {[%clk 0:01:31.7]} 20... Rf6 {[%clk 0:02:05.1]} 21. Qb1 {[%clk
0:01:16.7]} 21... Kg7 {[%clk 0:02:03.6]} 22. Nf1 {[%clk 0:01:06.9]} 22... f4
{[%clk 0:01:49.4]} 23. exf4 {[%clk 0:01:05.2]} 23... Qxe1+ {[%clk 0:01:50.3]}
24. Qxe1 {[%clk 0:01:05.2]} 24... Rxe1 {[%clk 0:01:51.2]} 25. Kxe1 {[%clk
0:01:05.6]} 25... gxf4 {[%clk 0:01:52.1]} 26. Nd2 {[%clk 0:01:03.6]} 26... Bc6
{[%clk 0:01:51.3]} 27. Bc2 {[%clk 0:01:02.7]} 27... Nf8 {[%clk 0:01:50.2]} 28.
Rh5 {[%clk 0:00:59]} 28... Ne6 {[%clk 0:01:45.9]} 29. d5 {[%clk 0:00:53.4]}
29... Be8 {[%clk 0:01:45.3]} 30. Rh4 {[%clk 0:00:51]} 30... Nc5 {[%clk
0:01:44.1]} 31. Ne4 {[%clk 0:00:46.5]} 31... Nxe4 {[%clk 0:01:43.8]} 32. fxe4
{[%clk 0:00:46.5]} 32... Rg6 {[%clk 0:01:42.4]} 33. Kf2 {[%clk 0:00:45.1]} 33...
Rg3 {[%clk 0:01:42.4]} 34. Rxf4 {[%clk 0:00:39.5]} 34... Rxc3 {[%clk 0:01:41.6]}
35. Bd1 {[%clk 0:00:27.2]} 35... Rxc4 {[%clk 0:01:41.7]} 36. Ke3 {[%clk
0:00:24.2]} 36... Bxa4 {[%clk 0:01:40.3]} 37. Be2 {[%clk 0:00:22.8]} 37... Rc3+
{[%clk 0:01:38]} 38. Kd4 {[%clk 0:00:21.6]} 38... Rc2 {[%clk 0:01:38.1]} 39.
Rg4+ {[%clk 0:00:21.8]} 39... Kf6 {[%clk 0:01:35.5]} 40. Bd3 {[%clk 0:00:21.4]}
40... Rb2 {[%clk 0:01:28.7]} 41. Rg8 {[%clk 0:00:20.4]} 41... Bb5 {[%clk
0:01:21.6]} 42. Bxb5 {[%clk 0:00:19.1]} 42... Rxb5 {[%clk 0:01:21.5]} 43. Rh8
{[%clk 0:00:18.6]} 43... Kg7 {[%clk 0:01:19.2]} 44. Re8 {[%clk 0:00:18.6]} 44...
Rc5 {[%clk 0:01:18.8]} 45. e5 {[%clk 0:00:18.7]} 45... dxe5+ {[%clk 0:01:19]}
46. Rxe5 {[%clk 0:00:18.4]} 46... a4 {[%clk 0:01:17.6]} 47. Re8 {[%clk
0:00:18.1]} 47... a3 {[%clk 0:01:17.2]} 48. Re2 {[%clk 0:00:17.2]} 48... Ra5
{[%clk 0:01:16.2]} 49. Ra2 {[%clk 0:00:16.7]} 49... Kf6 {[%clk 0:01:16]} 50.
Rf2+ {[%clk 0:00:15.9]} 50... Ke7 {[%clk 0:01:15.7]} 51. Ra2 {[%clk 0:00:16.3]}
51... Kd6 {[%clk 0:01:16.2]} 0-1

[Event "*** SCC Grand Prix: Titled Tuesday Blitz"]
[Site "Chess.com"]
[Date "2020.06.23"]
[Round "3"]
[White "sergeikim"]
[Black "Dr-Bassem"]
[Result "0-1"]
[WhiteElo "2520"]
[BlackElo "2793"]
[TimeControl "180+1"]
[EndTime "10:28:25 PDT"]
[Termination "Dr-Bassem won on time"]

1. d4 {[%clk 0:03:00.9]} 1... e6 {[%clk 0:02:59.7]} 2. c4 {[%clk 0:03:00.7]}
2... f5 {[%clk 0:02:57.4]} 3. g3 {[%clk 0:02:59.8]} 3... Nf6 {[%clk 0:02:57.8]}
4. Bg2 {[%clk 0:03:00.1]} 4... Be7 {[%clk 0:02:58.5]} 5. Nh3 {[%clk 0:03:00]}
5... O-O {[%clk 0:02:58.8]} 6. O-O {[%clk 0:03:00]} 6... d6 {[%clk 0:02:59.5]}
7. Nf4 {[%clk 0:02:58.2]} 7... e5 {[%clk 0:02:56.6]} 8. Nd5 {[%clk 0:02:52.4]}
8... c6 {[%clk 0:02:51.1]} 9. Nxe7+ {[%clk 0:02:50.3]} 9... Qxe7 {[%clk
0:02:52]} 10. Nc3 {[%clk 0:02:43.6]} 10... Na6 {[%clk 0:02:25.3]} 11. d5 {[%clk
0:02:36]} 11... c5 {[%clk 0:02:15.6]} 12. a3 {[%clk 0:02:34.7]} 12... Bd7 {[%clk
0:02:12.5]} 13. Rb1 {[%clk 0:02:21.4]} 13... Qf7 {[%clk 0:02:07]} 14. Nb5 {[%clk
0:01:46.6]} 14... Bxb5 {[%clk 0:02:01.2]} 15. cxb5 {[%clk 0:01:47.5]} 15... Nc7
{[%clk 0:02:01.5]} 16. b4 {[%clk 0:01:34.1]} 16... Ncxd5 {[%clk 0:01:51]} 17.
Qc2 {[%clk 0:01:27.4]} 17... cxb4 {[%clk 0:01:45.1]} 18. Qxf5 {[%clk 0:01:25.8]}
18... Nc3 {[%clk 0:01:40.3]} 19. Rxb4 {[%clk 0:01:23.8]} 19... Nxe2+ {[%clk
0:01:39.1]} 20. Kh1 {[%clk 0:01:23.5]} 20... Nd4 {[%clk 0:01:22.6]} 21. Qd3
{[%clk 0:01:13.2]} 21... Rac8 {[%clk 0:01:06.3]} 22. Be3 {[%clk 0:00:53.2]}
22... Nc2 {[%clk 0:01:05.2]} 23. Ra4 {[%clk 0:00:42.7]} 23... d5 {[%clk
0:00:46.1]} 24. Bg5 {[%clk 0:00:23]} 24... e4 {[%clk 0:00:43.5]} 25. Qe2 {[%clk
0:00:16.7]} 25... h6 {[%clk 0:00:25.2]} 26. Bxf6 {[%clk 0:00:09.4]} 26... Qxf6
{[%clk 0:00:26.1]} 27. Rxa7 {[%clk 0:00:08.6]} 27... Nd4 {[%clk 0:00:23.1]} 0-1

[Event "*** SCC Grand Prix: Titled Tuesday Blitz"]
[Site "Chess.com"]
[Date "2020.06.23"]
[Round "3"]
[White "Maksimus1998"]
[Black "MikeSailer"]
[Result "1-0"]
[WhiteElo "2475"]
[BlackElo "2114"]
[TimeControl "180+1"]
[EndTime "10:28:26 PDT"]
[Termination "Maksimus1998 won on time"]

1. e4 {[%clk 0:03:00.9]} 1... d5 {[%clk 0:02:56.7]} 2. exd5 {[%clk 0:03:00.2]}
2... Qxd5 {[%clk 0:02:56.6]} 3. Nc3 {[%clk 0:02:59.8]} 3... Qd6 {[%clk
0:02:56.9]} 4. g3 {[%clk 0:02:56.6]} 4... Nf6 {[%clk 0:02:53.8]} 5. Bg2 {[%clk
0:02:56.6]} 5... c6 {[%clk 0:02:53.1]} 6. d4 {[%clk 0:02:54.6]} 6... Bf5 {[%clk
0:02:52.2]} 7. Nge2 {[%clk 0:02:53.1]} 7... e6 {[%clk 0:02:51.6]} 8. O-O {[%clk
0:02:52.7]} 8... Be7 {[%clk 0:02:51.7]} 9. a3 {[%clk 0:02:50.9]} 9... O-O {[%clk
0:02:39.6]} 10. Bf4 {[%clk 0:02:49.1]} 10... Qd8 {[%clk 0:02:38.6]} 11. Qd2
{[%clk 0:02:42.4]} 11... Nbd7 {[%clk 0:02:37.5]} 12. Rad1 {[%clk 0:02:30.3]}
12... Nd5 {[%clk 0:02:32.4]} 13. Nxd5 {[%clk 0:02:27.4]} 13... cxd5 {[%clk
0:02:31]} 14. c3 {[%clk 0:02:26]} 14... Nf6 {[%clk 0:02:22.6]} 15. h3 {[%clk
0:02:24.9]} 15... Ne4 {[%clk 0:02:21.1]} 16. Qe3 {[%clk 0:02:24.5]} 16... h6
{[%clk 0:02:21.3]} 17. g4 {[%clk 0:02:24.4]} 17... Bh7 {[%clk 0:02:21.2]} 18. f3
{[%clk 0:02:22.5]} 18... Nd6 {[%clk 0:02:16.3]} 19. Ng3 {[%clk 0:02:19.2]} 19...
Nc4 {[%clk 0:02:09.1]} 20. Qe2 {[%clk 0:02:19.1]} 20... Bd6 {[%clk 0:02:01.8]}
21. Bxd6 {[%clk 0:02:18.6]} 21... Qxd6 {[%clk 0:01:59.7]} 22. f4 {[%clk
0:02:18.7]} 22... Qb6 {[%clk 0:01:52.2]} 23. Rf2 {[%clk 0:02:17.8]} 23... Rfe8
{[%clk 0:01:34.1]} 24. g5 {[%clk 0:02:17.3]} 24... hxg5 {[%clk 0:01:20.7]} 25.
fxg5 {[%clk 0:02:18.2]} 25... Qc7 {[%clk 0:01:01.8]} 26. Nh5 {[%clk 0:02:16.9]}
26... Nd6 {[%clk 0:00:57.9]} 27. Rdf1 {[%clk 0:02:01.7]} 27... Nf5 {[%clk
0:00:36.1]} 28. Bf3 {[%clk 0:01:29.1]} 28... Rf8 {[%clk 0:00:28.8]} 29. Bg4
{[%clk 0:01:28.8]} 29... Bg6 {[%clk 0:00:16.2]} 30. Bxf5 {[%clk 0:01:16.2]}
30... exf5 {[%clk 0:00:10.6]} 31. Nf4 {[%clk 0:01:13.4]} 31... Rae8 {[%clk
0:00:10.7]} 32. Qf3 {[%clk 0:01:11.2]} 32... Re4 {[%clk 0:00:10.7]} 33. h4
{[%clk 0:01:07.2]} 33... Rfe8 {[%clk 0:00:06.7]} 34. h5 {[%clk 0:01:07.1]} 34...
Re3 {[%clk 0:00:07]} 35. Qg2 {[%clk 0:00:59.5]} 35... R8e4 {[%clk 0:00:03]} 36.
hxg6 {[%clk 0:00:56.2]} 36... fxg6 {[%clk 0:00:03.6]} 37. Nxd5 {[%clk
0:00:55.2]} 37... Qd6 {[%clk 0:00:01.1]} 38. Nxe3 {[%clk 0:00:55.3]} 38... Rxe3
{[%clk 0:00:01.8]} 39. Rf3 {[%clk 0:00:54.8]} 1-0

[Event "*** SCC Grand Prix: Titled Tuesday Blitz"]
[Site "Chess.com"]
[Date "2020.06.23"]
[Round "3"]
[White "MartinMatthiesen"]
[Black "chesslh19"]
[Result "1-0"]
[WhiteElo "2342"]
[BlackElo "2114"]
[TimeControl "180+1"]
[EndTime "10:28:27 PDT"]
[Termination "MartinMatthiesen won by resignation"]

1. d4 {[%clk 0:03:00.9]} 1... Nf6 {[%clk 0:02:25.8]} 2. c4 {[%clk 0:03:00]} 2...
e6 {[%clk 0:02:24.5]} 3. Nf3 {[%clk 0:02:59.2]} 3... d5 {[%clk 0:02:24.8]} 4.
Nc3 {[%clk 0:02:58.6]} 4... c5 {[%clk 0:02:24.4]} 5. cxd5 {[%clk 0:02:58.1]}
5... cxd4 {[%clk 0:02:24.4]} 6. Qxd4 {[%clk 0:02:50.7]} 6... exd5 {[%clk
0:02:21.8]} 7. Bg5 {[%clk 0:02:47.8]} 7... Be7 {[%clk 0:02:21.6]} 8. g3 {[%clk
0:02:36.4]} 8... O-O {[%clk 0:02:19.1]} 9. Bg2 {[%clk 0:02:36]} 9... Nc6 {[%clk
0:02:19.1]} 10. Qa4 {[%clk 0:02:35.6]} 10... Be6 {[%clk 0:01:49]} 11. O-O {[%clk
0:02:33.6]} 11... a6 {[%clk 0:01:17.4]} 12. Rad1 {[%clk 0:02:27.7]} 12... b5
{[%clk 0:01:14.1]} 13. Qc2 {[%clk 0:02:26.2]} 13... Rc8 {[%clk 0:01:08.3]} 14.
Qb1 {[%clk 0:02:16.5]} 14... h6 {[%clk 0:01:00.6]} 15. Bf4 {[%clk 0:01:51.4]}
15... Qd7 {[%clk 0:00:57.5]} 16. Ne5 {[%clk 0:01:47.9]} 16... Nxe5 {[%clk
0:00:57.7]} 17. Bxe5 {[%clk 0:01:48.8]} 17... b4 {[%clk 0:00:49.1]} 18. Bxf6
{[%clk 0:01:46.1]} 18... Bxf6 {[%clk 0:00:27.8]} 19. Nxd5 {[%clk 0:01:45.7]}
19... Bxd5 {[%clk 0:00:27.9]} 20. Rxd5 {[%clk 0:01:45.2]} 20... Qc7 {[%clk
0:00:24.9]} 21. Qd3 {[%clk 0:01:39.8]} 21... g6 {[%clk 0:00:24.3]} 22. Qxa6
{[%clk 0:01:32.3]} 22... Bxb2 {[%clk 0:00:24.4]} 23. Rfd1 {[%clk 0:01:25.4]}
23... Bg7 {[%clk 0:00:22.8]} 24. Rd7 {[%clk 0:01:23]} 24... Qc4 {[%clk
0:00:22.7]} 25. Qxc4 {[%clk 0:01:14.4]} 25... Rxc4 {[%clk 0:00:22.7]} 26. Bd5
{[%clk 0:01:06.5]} 26... Rc2 {[%clk 0:00:19.7]} 27. e3 {[%clk 0:01:06.8]} 27...
Kh7 {[%clk 0:00:13.4]} 28. Rxf7 {[%clk 0:01:02.8]} 28... Rxf7 {[%clk 0:00:12.3]}
29. Bxf7 {[%clk 0:01:02.3]} 29... Bc3 {[%clk 0:00:12.5]} 30. Bb3 {[%clk
0:01:00]} 30... Rd2 {[%clk 0:00:12.6]} 31. Rxd2 {[%clk 0:01:00.3]} 31... Bxd2
{[%clk 0:00:13.5]} 32. Kf1 {[%clk 0:01:00.5]} 32... Kg7 {[%clk 0:00:14.1]} 33.
Ke2 {[%clk 0:01:00.6]} 33... Bc3 {[%clk 0:00:14.8]} 34. f4 {[%clk 0:01:00.9]}
34... Kf6 {[%clk 0:00:14.7]} 35. Kf3 {[%clk 0:01:01.2]} 35... g5 {[%clk
0:00:14.3]} 36. e4 {[%clk 0:01:01.5]} 36... gxf4 {[%clk 0:00:14.2]} 37. gxf4
{[%clk 0:01:02.4]} 37... Bd2 {[%clk 0:00:13.5]} 38. e5+ {[%clk 0:01:02.5]} 38...
Kg6 {[%clk 0:00:11.8]} 39. Ke4 {[%clk 0:01:01.7]} 39... h5 {[%clk 0:00:09.9]}
40. f5+ {[%clk 0:01:01.6]} 40... Kg7 {[%clk 0:00:10.3]} 41. f6+ {[%clk
0:01:01.4]} 41... Kf8 {[%clk 0:00:10.8]} 42. Kf5 {[%clk 0:01:01.3]} 42... Bc3
{[%clk 0:00:09.1]} 43. e6 {[%clk 0:01:01.3]} 43... Bd4 {[%clk 0:00:09.1]} 44.
e7+ {[%clk 0:01:01.5]} 44... Ke8 {[%clk 0:00:09.3]} 45. Ba4+ {[%clk 0:01:01.8]}
1-0